bitfinex-derivatives/quotes_BTCF0:USTF0_20250630
["timestamp","ask_amount","ask_price","bid_price","bid_amount"]
[1751265767001,2.22486825,107850.0,107840.0,0.04559445]
[1751265767201,2.27999081,107850.0,107840.0,0.04559445]
[1751265768704,2.27999081,107850.0,107840.0,0.0311]
[1751265770106,2.24839081,107850.0,107840.0,0.0311]
[1751265772106,1.83959625,107850.0,107840.0,0.0311]
[1751265772306,2.24839081,107850.0,107840.0,0.0311]
[1751265772508,1.83959625,107850.0,107840.0,0.0311]
[1751265772702,2.04399353,107850.0,107840.0,0.0311]
[1751265772901,2.27939081,107850.0,107840.0,0.0311]
[1751265773407,0.1483312,107840.0,107830.0,0.21873017]
[1751265773605,0.73443201,107840.0,107830.0,0.25023017]
[1751265773802,0.73443201,107840.0,107830.0,0.10188517]
[1751265774008,1.48460024,107840.0,107830.0,0.10188517]
[1751265774203,1.28020296,107840.0,107830.0,0.10188517]
[1751265774409,1.48460024,107840.0,107830.0,0.10188517]
[1751265774804,1.48560024,107840.0,107830.0,0.10188517]
[1751265775509,1.48560024,107840.0,107830.0,0.25023017]
[1751265775703,1.28120296,107840.0,107830.0,0.25023017]
[1751265775903,1.48560024,107840.0,107830.0,0.25023017]
[1751265776305,1.48760024,107840.0,107830.0,0.10188517]
[1751265776912,1.28320296,107840.0,107830.0,0.10188517]
[1751265777114,1.48760024,107840.0,107830.0,0.10188517]
[1751265778925,1.28320296,107840.0,107830.0,0.10188517]
[1751265779124,1.48760024,107840.0,107830.0,0.10188517]
[1751265781528,1.48760024,107840.0,107830.0,0.25023017]
[1751265784319,1.48760024,107840.0,107830.0,0.00548517]
[1751265784524,1.72359752,107840.0,107830.0,0.00548517]
[1751265784727,1.54930024,107840.0,107830.0,0.00548517]
[1751265785125,1.54930024,107840.0,107830.0,0.01952013]
[1751265787126,1.34490296,107840.0,107830.0,0.01952013]
[1751265787332,1.54930024,107840.0,107830.0,0.16786513]
[1751265787927,0.79938024,107840.0,107830.0,0.16786513]
[1751265788133,1.55046024,107840.0,107830.0,0.15383017]
[1751265788432,1.55046024,107840.0,107830.0,0.18393017]
[1751265788634,1.34606296,107840.0,107830.0,0.18393017]
[1751265788833,1.55046024,107840.0,107830.0,0.18393017]
[1751265789825,1.55046024,107840.0,107830.0,0.0495953]
[1751265790025,1.55046024,107840.0,107830.0,0.1979403]
[1751265790822,0.38495176,107840.0,107830.0,0.1979403]
[1751265791027,0.53259176,107840.0,107830.0,0.41922745]
[1751265791228,0.38495176,107840.0,107830.0,0.41922745]
[1751265791629,0.38495176,107840.0,107830.0,0.21483017]
[1751265792327,0.38495176,107840.0,107830.0,0.60469945]
[1751265792835,0.38495176,107840.0,107830.0,0.41922745]
[1751265795639,0.38495176,107840.0,107830.0,0.41922745]
[1751265796432,0.36312166,107840.0,107830.0,0.60469945]
[1751265796627,0.36312166,107840.0,107830.0,0.82154745]
[1751265796832,0.36312166,107840.0,107830.0,1.06259754]
[1751265797141,3e-08,107850.0,107840.0,0.185414]
[1751265797330,0.3608,107870.0,107860.0,0.1483037]
[1751265797638,0.33255512,107870.0,107860.0,1.12608917]
[1751265797832,0.33255512,107870.0,107860.0,1.37330517]
[1751265798738,0.33655512,107870.0,107860.0,1.37876134]
[1751265799339,0.31465177,107870.0,107860.0,1.37876134]
[1751265799538,0.31465177,107870.0,107860.0,1.37330517]
[1751265799740,0.02588154,107870.0,107860.0,1.98410517]
[1751265800133,0.02588154,107870.0,107860.0,1.73410517]
[1751265800333,0.02888154,107870.0,107860.0,1.73410517]
[1751265800642,0.02888154,107870.0,107860.0,1.80823668]
[1751265800940,0.02888154,107870.0,107860.0,1.83913668]
[1751265801142,0.02888154,107870.0,107860.0,1.84459175]
[1751265801642,0.01,107870.0,107860.0,2.09559175]
[1751265803444,0.008,107870.0,107860.0,2.09659175]
[1751265808141,0.008,107870.0,107860.0,1.84659175]
[1751265808437,0.3688,107870.0,107860.0,0.5184994]
[1751265808637,0.3688,107870.0,107860.0,1.47893668]
[1751265810044,0.3688,107870.0,107860.0,0.72289668]
[1751265810245,0.3688,107870.0,107860.0,1.47933668]
[1751265811751,0.3688,107870.0,107860.0,1.29392068]
[1751265813347,0.008,107870.0,107860.0,1.29392068]
[1751265814547,0.3608,107890.0,107860.0,1.89723026]
[1751265814745,0.3608,107890.0,107880.0,0.55707076]
[1751265815050,0.3608,107890.0,107880.0,1.32772496]
[1751265815241,0.3608,107890.0,107880.0,1.18750768]
[1751265815442,0.3934,107890.0,107880.0,1.18750768]
[1751265815646,0.3934,107890.0,107880.0,1.15470768]
[1751265815846,0.424,107890.0,107880.0,1.15470768]
[1751265816247,0.425,107890.0,107880.0,1.35910496]
[1751265816744,0.3944,107890.0,107880.0,1.35910496]
[1751265816945,0.3954,107890.0,107880.0,1.39330496]
[1751265817649,0.3954,107890.0,107880.0,1.39430496]
[1751265819950,0.3954,107890.0,107880.0,1.36210496]
[1751265823652,0.4257,107890.0,107880.0,1.33120496]
[1751265828053,0.4257,107890.0,107880.0,1.36400496]
[1751265829650,0.3954,107890.0,107880.0,0.9552104]
[1751265829855,0.3954,107890.0,107880.0,1.36400496]
[1751265830456,0.3954,107890.0,107880.0,1.36425319]
[1751265830859,0.3954,107890.0,107880.0,0.95545863]
[1751265831060,0.3954,107890.0,107880.0,1.36425319]
[1751265832859,0.3954,107890.0,107880.0,0.60837319]
[1751265833061,0.3954,107890.0,107880.0,1.36025319]
[1751265835163,0.3954,107890.0,107880.0,1.12253591]
[1751265835361,0.4266,107890.0,107880.0,1.32693319]
[1751265835554,0.44904619,107890.0,107880.0,1.32693319]
[1751265835754,0.44904619,107890.0,107880.0,1.35983319]
[1751265836257,0.4266,107890.0,107880.0,1.35983319]
[1751265836561,0.44905437,107890.0,107880.0,1.35983319]
[1751265838162,0.44905437,107890.0,107880.0,0.60847319]
[1751265838360,0.44905437,107890.0,107880.0,1.36103319]
[1751265841066,0.4266,107890.0,107880.0,1.36103319]
[1751265842055,0.4266,107890.0,107880.0,0.95223863]
[1751265842261,0.4266,107890.0,107880.0,1.36103319]
[1751265842561,0.3954,107890.0,107880.0,1.36103319]
[1751265843161,0.41788298,107890.0,107880.0,1.36103319]
[1751265850364,0.3954,107890.0,107880.0,1.36103319]
[1751265851465,0.3628,107890.0,107880.0,1.36103319]
[1751265851657,0.3628,107890.0,107880.0,1.39343319]
[1751265853263,0.3628,107890.0,107880.0,1.46716246]
[1751265853653,0.3628,107890.0,107880.0,1.39343319]
[1751265853858,0.3628,107890.0,107880.0,1.46716246]
[1751265854869,0.3628,107890.0,107880.0,1.39343319]
[1751265855168,0.3628,107890.0,107880.0,1.46716246]
[1751265855870,0.3628,107890.0,107880.0,1.46663398]
[1751265856570,0.38395982,107890.0,107880.0,1.44849403]
[1751265856960,0.38395982,107890.0,107880.0,1.04022795]
[1751265857164,0.38395982,107890.0,107880.0,1.44849403]
[1751265859274,0.3628,107890.0,107880.0,1.48111934]
[1751265860163,0.3628,107890.0,107880.0,0.72855934]
[1751265860367,0.3628,107890.0,107880.0,1.47707934]
[1751265860660,0.3947,107890.0,107880.0,1.47707934]
[1751265861769,0.3947,107890.0,107880.0,1.44423934]
[1751265861970,0.4267,107890.0,107880.0,1.33749007]
[1751265862172,0.4267,107890.0,107880.0,0.66325934]
[1751265862474,0.63083304,107890.0,107880.0,0.2368591]
[1751265862664,0.63083304,107890.0,107880.0,0.44099667]
[1751265862868,0.63083304,107890.0,107880.0,1.04031667]
[1751265863174,0.77909554,107890.0,107880.0,0.44099667]
[1751265863375,0.8002539,107890.0,107880.0,0.83662363]
[1751265863573,0.8002539,107890.0,107880.0,1.04075667]
[1751265863770,0.8002539,107890.0,107880.0,0.78102399]
[1751265863771,0.44785836,107890.0,107880.0,0.78102399]
[1751265864077,0.44785836,107890.0,107880.0,0.18126399]
[1751265864268,0.44785836,107890.0,107880.0,0.78098399]
[1751265864470,0.8374502,107890.0,107880.0,0.18126399]
[1751265864781,0.44785836,107890.0,107880.0,0.78090399]
[1751265866575,0.44785836,107890.0,107880.0,0.98511183]
[1751265867564,0.44785836,107890.0,107880.0,0.38547183]
[1751265867868,0.44785836,107890.0,107880.0,0.98507183]
[1751265868569,0.44785836,107890.0,107880.0,0.18126399]
[1751265868774,0.44785836,107890.0,107880.0,0.98503183]
[1751265870482,0.44785836,107890.0,107880.0,0.97054647]
[1751265870879,0.44785836,107890.0,107880.0,0.76633863]
[1751265871074,0.44785836,107890.0,107880.0,0.97054647]
[1751265872976,0.6520662,107890.0,107880.0,0.00349646]
[1751265873170,0.0370746,107870.0,107850.0,0.03528978]
[1751265873375,0.0370828,107840.0,107820.0,0.02385877]
[1751265873575,1.10615284,107830.0,107820.0,0.02385877]
[1751265873776,0.932245,107830.0,107820.0,0.02385877]
[1751265873976,1.13670107,107830.0,107820.0,0.02385877]
[1751265874883,0.78414823,107830.0,107820.0,0.02385877]
[1751265875183,0.98835607,107830.0,107820.0,0.02385877]
[1751265875784,1.13670107,107830.0,107820.0,0.02385877]
[1751265876389,0.96349323,107830.0,107820.0,0.02385877]
[1751265876586,1.24165785,107830.0,107820.0,0.02385877]
[1751265877278,1.24265785,107830.0,107820.0,0.02585877]
[1751265877479,1.24265785,107830.0,107820.0,0.02885877]
[1751265877882,0.89010501,107830.0,107820.0,0.02885877]
[1751265878185,1.24365775,107830.0,107820.0,0.03085877]
[1751265879086,1.24983753,107830.0,107820.0,0.03085877]
[1751265880785,1.10149263,107830.0,107820.0,0.03085877]
[1751265882486,1.24983763,107830.0,107820.0,0.03085877]
[1751265884185,1.27294476,107830.0,107820.0,0.04512363]
[1751265884385,1.06873692,107830.0,107820.0,0.04512363]
[1751265884586,1.27294476,107830.0,107820.0,0.04512363]
[1751265886383,1.27294476,107830.0,107820.0,0.05962006]
[1751265887188,1.06873692,107830.0,107820.0,0.05962006]
[1751265887493,1.10149263,107830.0,107820.0,0.17921747]
[1751265887690,1.10149263,107830.0,107820.0,0.20941747]
[1751265888389,0.86628479,107830.0,107820.0,0.41712177]
[1751265888584,0.86628479,107830.0,107820.0,0.21291393]
[1751265889294,0.86628479,107830.0,107820.0,0.81467393]
[1751265889494,0.83428479,107830.0,107820.0,1.04754434]
[1751265889687,0.82810501,107830.0,107820.0,1.0333767]
[1751265889991,0.82810501,107830.0,107820.0,1.0963767]
[1751265890193,0.82810501,107830.0,107820.0,1.09637652]
[1751265890391,0.83430405,107830.0,107820.0,1.09637652]
[1751265891096,0.72384823,107830.0,107820.0,1.09637652]
[1751265891393,0.72384823,107830.0,107820.0,1.26084177]
[1751265892093,0.72384823,107830.0,107820.0,1.24681652]
[1751265892488,0.72384823,107830.0,107820.0,1.26084253]
[1751265892995,0.72384823,107830.0,107820.0,1.46505037]
[1751265893295,0.72384823,107830.0,107820.0,1.05663469]
[1751265893595,0.72384823,107830.0,107820.0,1.26084253]
[1751265894687,0.72384823,107830.0,107820.0,1.46505037]
[1751265894990,0.72384823,107830.0,107820.0,1.45102436]
[1751265897992,0.72384823,107830.0,107820.0,1.04260868]
[1751265898192,0.72384823,107830.0,107820.0,1.45102436]
[1751265902193,0.72384823,107830.0,107820.0,1.45102265]
[1751265903699,0.72384823,107830.0,107820.0,1.52375707]
[1751265903895,0.72384823,107830.0,107820.0,1.42211577]
[1751265904796,0.74709769,107830.0,107820.0,1.42211577]
[1751265905098,0.72384823,107830.0,107820.0,1.4602983]
[1751265905697,0.72384823,107830.0,107820.0,0.2293482]
[1751265905893,0.75404823,107830.0,107820.0,1.38720388]
[1751265906100,0.75404823,107830.0,107820.0,1.18299604]
[1751265906498,0.75429646,107830.0,107820.0,1.18299604]
[1751265906697,0.75429646,107830.0,107820.0,1.38720388]
[1751265907095,0.75429646,107830.0,107820.0,1.41992388]
[1751265907295,0.72409646,107830.0,107820.0,1.41992388]
[1751265907799,0.72409646,107830.0,107820.0,1.4348751]
[1751265908297,0.72409646,107830.0,107820.0,1.50906391]
[1751265909400,0.00249646,107830.0,107820.0,1.50906391]
[1751265909604,0.00249646,107830.0,107820.0,2.05535191]
[1751265909799,0.00249646,107830.0,107820.0,2.05579191]
[1751265910706,0.00249646,107830.0,107820.0,2.06268371]
[1751265912604,0.00249646,107830.0,107820.0,1.94725467]
[1751265912799,0.00249646,107830.0,107820.0,2.13627913]
[1751265913504,0.00249646,107830.0,107820.0,2.38627913]
[1751265914103,0.00249646,107830.0,107820.0,1.97786345]
[1751265914303,0.00249646,107830.0,107820.0,2.38627913]
[1751265914908,0.00249646,107830.0,107820.0,2.68227913]
[1751265915603,6e-08,107830.0,107820.0,2.68227913]
[1751265918310,6e-08,107830.0,107820.0,2.24679113]
[1751265918511,6e-08,107830.0,107820.0,2.43227913]
[1751265920715,6e-08,107830.0,107820.0,1.68223913]
[1751265921010,6e-08,107830.0,107820.0,1.49675113]
[1751265921218,6e-08,107830.0,107820.0,2.24431113]
[1751265921913,6e-08,107830.0,107820.0,2.17075571]
[1751265928529,6e-08,107830.0,107820.0,2.24431113]
[1751265929133,6e-08,107830.0,107820.0,1.49675113]
[1751265929335,6e-08,107830.0,107820.0,2.24303113]
[1751265931228,6e-08,107830.0,107820.0,2.16947571]
[1751265931534,6e-08,107830.0,107820.0,1.49724753]
[1751265931725,0.03230006,107830.0,107820.0,2.24312753]
[1751265932331,0.03230006,107830.0,107820.0,2.18016753]
[1751265932529,0.06520006,107830.0,107820.0,2.10611571]
[1751265932932,0.06520006,107830.0,107820.0,1.32759571]
[1751265933127,0.06520006,107830.0,107820.0,1.40165206]
[1751265933332,0.06520006,107830.0,107820.0,2.14749206]
[1751265934137,0.06520006,107830.0,107820.0,1.40165206]
[1751265934335,0.06520006,107830.0,107820.0,2.14749206]
[1751265934937,0.06520006,107830.0,107820.0,0.99323638]
[1751265935130,0.06520006,107830.0,107820.0,2.14725206]
[1751265938641,0.06520006,107830.0,107820.0,1.85125206]
[1751265939942,0.06520006,107830.0,107820.0,1.76922391]
[1751265940144,0.06520006,107830.0,107820.0,1.84315607]
[1751265940339,0.06520006,107830.0,107820.0,1.76902391]
[1751265940535,0.06520006,107830.0,107820.0,1.86099006]
[1751265941343,0.06520006,107830.0,107820.0,1.86115006]
[1751265941843,0.06520006,107830.0,107820.0,1.45273438]
[1751265942046,0.42600006,107830.0,107820.0,1.21821695]
[1751265942238,0.42600006,107830.0,107820.0,0.99620211]
[1751265942438,0.42600006,107830.0,107820.0,1.20040995]
[1751265942943,0.42600006,107830.0,107820.0,1.20044995]
[1751265943746,0.42600006,107830.0,107820.0,0.45616995]
[1751265944043,0.42600006,107830.0,107820.0,1.20048995]
[1751265944245,0.42600006,107830.0,107820.0,0.60504995]
[1751265944438,0.42600006,107830.0,107820.0,0.99612211]
[1751265944638,0.42600006,107830.0,107820.0,1.20016995]
[1751265945142,0.42600006,107830.0,107820.0,1.1258508]
[1751265947847,0.42600006,107830.0,107820.0,0.92164296]
[1751265948147,0.42600006,107830.0,107820.0,1.1258508]
[1751265948342,0.42600006,107830.0,107820.0,0.92164296]
[1751265948534,0.426,107830.0,107820.0,1.1258508]
[1751265948739,0.426,107830.0,107820.0,1.12585091]
[1751265949041,0.63020784,107830.0,107820.0,0.02944437]
[1751265949347,0.81569585,107830.0,107820.0,0.62388437]
[1751265949540,0.83876165,107830.0,107820.0,0.62388437]
[1751265949734,0.65327364,107830.0,107820.0,0.60939122]
[1751265949940,0.65327364,107830.0,107820.0,0.62388442]
[1751265950445,0.88455381,107830.0,107820.0,0.02944553]
[1751265950747,0.88455381,107830.0,107820.0,0.77228423]
[1751265950949,0.88455381,107830.0,107820.0,0.77188114]
[1751265951242,0.86148801,107830.0,107820.0,0.77188114]
[1751265951445,0.88454331,107830.0,107820.0,0.78637596]
[1751265952340,1.06569585,107830.0,107820.0,0.77191114]
[1751265952538,1.06569585,107830.0,107820.0,0.75778992]
[1751265952841,0.86148801,107830.0,107820.0,0.16330992]
[1751265953046,0.86148801,107830.0,107820.0,0.75750992]
[1751265953247,0.86148801,107830.0,107820.0,0.78619405]
[1751265954247,0.61148801,107830.0,107820.0,0.77200527]
[1751265954546,0.61148801,107830.0,107820.0,0.78603351]
[1751265954953,0.63450767,107830.0,107820.0,0.78603351]
[1751265955141,0.83871551,107830.0,107820.0,0.78603351]
[1751265955336,0.81569585,107830.0,107820.0,0.19199351]
[1751265955540,0.81569585,107830.0,107820.0,0.78587351]
[1751265955740,0.61148801,107830.0,107820.0,0.78587351]
[1751265956146,0.61148801,107830.0,107820.0,0.78571351]
[1751265956347,0.75983301,107830.0,107820.0,0.78571351]
[1751265956949,0.75983301,107830.0,107820.0,0.19199351]
[1751265957147,0.75983301,107830.0,107820.0,0.78555351]
[1751265957344,0.75983301,107830.0,107820.0,0.02868359]
[1751265957951,0.98704966,107830.0,107820.0,0.02868359]
[1751265958553,0.78284182,107830.0,107820.0,0.02868359]
[1751265958749,0.78284182,107830.0,107820.0,0.16254694]
[1751265958750,0.63449682,107830.0,107820.0,0.16254694]
[1751265958955,0.83870466,107830.0,107820.0,0.17704284]
[1751265959156,0.63449682,107830.0,107820.0,0.16254694]
[1751265959359,0.98704966,107830.0,107820.0,0.16254694]
[1751265961053,0.78284182,107830.0,107820.0,0.01418824]
[1751265961357,0.98704966,107830.0,107820.0,0.01418824]
[1751265961953,0.78284182,107830.0,107820.0,0.01418824]
[1751265962159,0.98704966,107830.0,107820.0,0.01418824]
[1751265962457,0.75983301,107830.0,107820.0,0.01418824]
[1751265962658,0.96404085,107830.0,107820.0,0.01418824]
[1751265962861,0.75983301,107830.0,107820.0,0.01418824]
[1751265963052,0.96404085,107830.0,107820.0,0.01418824]
[1751265963252,0.75983301,107830.0,107820.0,0.01418824]
[1751265963453,0.96404085,107830.0,107820.0,0.01418824]
[1751265964358,0.75983301,107830.0,107820.0,0.01418824]
[1751265964661,0.96404085,107830.0,107820.0,0.01418824]
[1751265964861,0.75983301,107830.0,107820.0,0.01418824]
[1751265965059,0.96404085,107830.0,107820.0,0.01418824]
[1751265965361,0.96404085,107830.0,107820.0,0.16254694]
[1751265966360,0.81569585,107830.0,107820.0,0.16254694]
[1751265966653,0.83869805,107830.0,107820.0,0.16254694]
[1751265967662,0.80155504,107830.0,107820.0,0.16254694]
[1751265968052,0.5973472,107830.0,107820.0,0.16254694]
[1751265968250,0.80155504,107830.0,107820.0,0.01418824]
[1751265968655,0.80155504,107830.0,107820.0,0.16254694]
[1751265969351,0.80155504,107830.0,107820.0,0.01418824]
[1751265969556,0.5973472,107830.0,107820.0,0.01418824]
[1751265969758,0.5973472,107830.0,107820.0,0.16254694]
[1751265970065,0.80155504,107830.0,107820.0,0.01418824]
[1751265973560,0.80155504,107830.0,107820.0,0.02868456]
[1751265973864,0.80155504,107830.0,107820.0,0.01418824]
[1751265975862,0.80155504,107830.0,107820.0,0.16254694]
[1751265977467,0.80155504,107830.0,107820.0,0.01418824]
[1751265978369,0.80155504,107830.0,107820.0,0.02868478]
[1751265979065,0.80155504,107830.0,107820.0,0.01418824]
[1751265981872,0.80155504,107830.0,107820.0,0.02868505]
[1751265982868,0.5973472,107830.0,107820.0,0.02868505]
[1751265983063,0.80155504,107830.0,107820.0,0.02868505]
[1751265983262,0.83869805,107830.0,107800.0,0.44722984]
[1751265983469,1.07418034,107810.0,107800.0,0.35781036]
[1751265983670,1.09718254,107810.0,107800.0,0.35781036]
[1751265983973,1.16158254,107810.0,107800.0,0.20942406]
[1751265984473,1.16158254,107810.0,107800.0,0.2059276]
[1751265984668,0.9573747,107810.0,107800.0,0.2059276]
[1751265984873,1.16258254,107810.0,107800.0,0.2099276]
[1751265985176,1.16258254,107810.0,107800.0,0.2189276]
[1751265985776,0.9603747,107810.0,107800.0,0.2189276]
[1751265985976,1.16458254,107810.0,107800.0,0.2189276]
[1751265986176,1.23948284,107810.0,107800.0,0.2189276]
[1751265986370,1.24687191,107810.0,107800.0,0.2189276]
[1751265986576,1.04266407,107810.0,107800.0,0.2189276]
[1751265986877,1.17197161,107810.0,107800.0,0.2189276]
[1751265987080,0.96776377,107810.0,107800.0,0.2189276]
[1751265987278,1.17197161,107810.0,107800.0,0.2189276]
[1751265987969,1.17197161,107810.0,107800.0,0.2159276]
[1751265988175,1.17097161,107810.0,107800.0,0.2079276]
[1751265988570,1.17097161,107810.0,107800.0,0.2069276]
[1751265988775,1.18697161,107810.0,107800.0,0.2079276]
[1751265989072,1.18697161,107810.0,107800.0,0.3563139]
[1751265990280,1.26147135,107810.0,107800.0,0.3563139]
[1751265990476,1.26147135,107810.0,107800.0,0.2079276]
[1751265990678,1.24278351,107810.0,107800.0,0.2079276]
[1751265990878,2.03963135,107810.0,107800.0,0.2079276]
[1751265991780,1.83542351,107810.0,107800.0,0.2079276]
[1751265992475,2.03963135,107810.0,107800.0,0.2079276]
[1751265992670,1.44699135,107810.0,107800.0,0.2079276]
[1751265992972,2.07679135,107810.0,107800.0,0.2079276]
[1751265995885,0.1484,107790.0,107780.0,0.1855074]
[1751265996182,1.72673434,107790.0,107780.0,0.20350558]
[1751265996382,1.78883434,107790.0,107780.0,0.20350558]
[1751265997483,1.5846265,107790.0,107780.0,0.01799818]
[1751265997783,1.5886265,107790.0,107780.0,0.01899818]
[1751265997986,1.79283434,107790.0,107780.0,0.01899818]
[1751265998187,1.5886265,107790.0,107780.0,0.01899818]
[1751265998387,1.79283434,107790.0,107780.0,0.01899818]
[1751265998584,1.79283434,107790.0,107780.0,0.04969818]
[1751265998882,1.79983434,107790.0,107780.0,0.05069818]
[1751266000280,1.79983434,107790.0,107780.0,0.01999818]
[1751266000787,1.98059568,107790.0,107780.0,0.01999818]
[1751266000986,2.00311407,107790.0,107780.0,0.01999818]
[1751266001187,1.98059568,107790.0,107780.0,0.01650172]
[1751266001389,2.18866664,107790.0,107780.0,0.01650172]
[1751266001588,2.18866664,107790.0,107780.0,0.002]
[1751266001781,1.78025096,107790.0,107780.0,0.01650272]
[1751266001976,2.18866664,107790.0,107780.0,0.01650272]
[1751266002181,2.18866664,107790.0,107780.0,0.002]
[1751266004193,0.1484138,107780.0,107770.0,0.00092786]
[1751266004392,0.8313406,107780.0,107770.0,0.00092786]
[1751266004592,1.0169086,107780.0,107770.0,0.00092786]
[1751266005999,1.6431486,107780.0,107770.0,0.00092786]
[1751266006193,1.4571806,107780.0,107770.0,0.00092786]
[1751266006400,1.6427486,107780.0,107770.0,0.00092786]
[1751266006896,1.4571806,107780.0,107770.0,0.00092786]
[1751266007997,1.4591806,107780.0,107770.0,0.00092786]
[1751266008198,1.4587406,107780.0,107770.0,0.00092786]
[1751266009102,1.4617406,107780.0,107770.0,0.00092786]
[1751266010900,1.4617406,107780.0,107770.0,0.01494129]
[1751266011302,1.4611006,107780.0,107770.0,0.01494129]
[1751266011604,1.25689276,107780.0,107770.0,0.01494129]
[1751266011804,1.4611006,107780.0,107770.0,0.01494129]
[1751266012300,1.4611006,107780.0,107770.0,0.00092786]
[1751266013206,1.25689276,107780.0,107770.0,0.00092786]
[1751266013407,1.4611006,107780.0,107770.0,0.00092786]
[1751266013706,2.9611006,107780.0,107770.0,0.00092786]
[1751266014206,1.4611006,107780.0,107770.0,0.00092786]
[1751266014707,2.9611006,107780.0,107770.0,0.00092786]
[1751266016711,2.9611006,107780.0,107760.0,0.00461702]
[1751266016712,0.1484276,107770.0,107760.0,0.00461702]
[1751266016906,0.7676544,107770.0,107760.0,0.02228017]
[1751266017211,0.7977544,107770.0,107760.0,0.02228017]
[1751266017903,0.7987544,107770.0,107760.0,0.02228017]
[1751266018710,0.7987544,107770.0,107760.0,0.05548017]
[1751266019108,1.4215544,107770.0,107760.0,0.20392157]
[1751266019308,1.47667696,107770.0,107760.0,0.05548017]
[1751266019710,1.47667696,107770.0,107760.0,0.20392157]
[1751266019911,1.47667696,107770.0,107760.0,0.02228017]
[1751266020212,1.47667696,107770.0,107760.0,0.02328017]
[1751266020213,1.47767696,107770.0,107760.0,0.02328017]
[1751266020416,1.27346912,107770.0,107760.0,0.02328017]
[1751266020713,1.47767696,107770.0,107760.0,0.02328017]
[1751266020913,1.47767696,107770.0,107760.0,0.05438017]
[1751266021811,1.4225544,107770.0,107760.0,0.05438017]
[1751266022010,0.56544656,107770.0,107760.0,0.20282157]
[1751266022221,1.61287676,107770.0,107760.0,0.23532157]
[1751266022512,1.61287676,107770.0,107760.0,0.26692157]
[1751266023109,1.60783676,107770.0,107760.0,0.26692157]
[1751266023308,0.82455676,107770.0,107760.0,0.26692157]
[1751266023514,1.40318892,107770.0,107760.0,0.26692157]
[1751266024015,0.82455676,107770.0,107760.0,0.26692157]
[1751266024209,0.82455676,107770.0,107760.0,0.02328017]
[1751266024210,1.5523344,107770.0,107760.0,0.02328017]
[1751266024409,1.60775676,107770.0,107760.0,0.02328017]
[1751266024710,1.60775676,107770.0,107760.0,0.00911348]
[1751266024913,1.40354892,107770.0,107760.0,0.07411348]
[1751266025112,0.82455676,107770.0,107760.0,0.07411348]
[1751266025308,1.60775676,107770.0,107760.0,0.22255488]
[1751266026105,1.60731676,107770.0,107760.0,0.07411348]
[1751266026313,1.63751676,107770.0,107760.0,0.04191348]
[1751266026614,1.63751676,107770.0,107760.0,0.20438401]
[1751266027014,0.85475676,107770.0,107760.0,0.20438401]
[1751266027219,1.63727676,107770.0,107760.0,0.20438401]
[1751266027409,1.63711676,107770.0,107760.0,0.20438401]
[1751266028112,1.63715676,107770.0,107760.0,0.20438401]
[1751266028714,1.63671676,107770.0,107760.0,0.02314261]
[1751266029016,1.63671676,107770.0,107760.0,0.01964615]
[1751266029316,0.1484551,107750.0,107740.0,0.14939702]
[1751266029517,0.89307052,107750.0,107740.0,0.17840523]
[1751266029717,1.12737836,107750.0,107740.0,0.18190169]
[1751266029917,0.92317052,107750.0,107740.0,0.18190169]
[1751266030518,1.12837836,107750.0,107740.0,0.18190169]
[1751266031116,1.12837836,107750.0,107740.0,0.21340169]
[1751266031312,1.12837836,107750.0,107740.0,0.21346536]
[1751266031513,1.1058594,107750.0,107740.0,0.21346536]
[1751266031909,0.90165156,107750.0,107740.0,0.21346536]
[1751266032416,1.0757594,107750.0,107740.0,0.06499646]
[1751266032627,0.87155156,107750.0,107740.0,0.0615]
[1751266032821,1.0757594,107750.0,107740.0,0.06499646]
[1751266033410,0.87155156,107750.0,107740.0,0.06499646]
[1751266033610,1.08319163,107750.0,107740.0,0.06499646]
[1751266033816,0.87898379,107750.0,107740.0,0.06499646]
[1751266034123,1.72167163,107750.0,107740.0,0.06499646]
[1751266034421,1.72367163,107750.0,107740.0,0.06499646]
[1751266035417,1.51946379,107750.0,107740.0,0.06499646]
[1751266035620,1.72367163,107750.0,107740.0,0.06499646]
[1751266037927,1.51946379,107750.0,107740.0,0.06499646]
[1751266038219,1.72367163,107750.0,107740.0,0.06499646]
[1751266038424,1.72367163,107750.0,107740.0,0.21346536]
[1751266039025,1.72367163,107750.0,107740.0,0.06499646]
[1751266039026,1.51946379,107750.0,107740.0,0.06499646]
[1751266039328,1.55056379,107750.0,107740.0,0.06499646]
[1751266039527,1.75477163,107750.0,107740.0,0.21346536]
[1751266040227,1.55056379,107750.0,107740.0,0.21346536]
[1751266040429,1.75477163,107750.0,107740.0,0.21346536]
[1751266041024,1.55056379,107750.0,107740.0,0.21346536]
[1751266041325,1.55056379,107750.0,107740.0,0.01769715]
[1751266041529,1.58226379,107750.0,107740.0,0.01769715]
[1751266041730,1.78647163,107750.0,107740.0,0.05089715]
[1751266042131,1.78647163,107750.0,107740.0,0.19936605]
[1751266042632,1.58226379,107750.0,107740.0,0.19936605]
[1751266042934,1.78647163,107750.0,107740.0,0.19936605]
[1751266043130,1.65737166,107750.0,107740.0,0.05089715]
[1751266043329,1.8615795,107750.0,107740.0,0.19936605]
[1751266043632,1.65737166,107750.0,107740.0,0.19936605]
[1751266043829,1.8615795,107750.0,107740.0,0.19936605]
[1751266044634,1.8615795,107750.0,107740.0,0.19586959]
[1751266044835,1.8615795,107750.0,107740.0,0.05089715]
[1751266045227,1.8615795,107750.0,107740.0,0.01769715]
[1751266046434,1.8615795,107750.0,107740.0,0.16616605]
[1751266048728,1.8615795,107750.0,107740.0,0.15196536]
[1751266048928,1.8615795,107750.0,107740.0,0.16638763]
[1751266050033,1.8615795,107750.0,107740.0,0.15196536]
[1751266050240,1.8600995,107750.0,107740.0,0.0179173]
[1751266050431,1.8600995,107750.0,107740.0,0.00349646]
[1751266051538,1.8580995,107750.0,107740.0,0.00349646]
[1751266051837,1.8600995,107750.0,107740.0,0.00349646]
[1751266052238,1.8600995,107750.0,107740.0,0.01788558]
[1751266053035,1.65589166,107750.0,107740.0,0.00349646]
[1751266053234,1.8600995,107750.0,107740.0,0.01788707]
[1751266053638,1.65589166,107750.0,107740.0,0.01788707]
[1751266053842,1.8600995,107750.0,107740.0,0.01788707]
[1751266054136,1.8600995,107750.0,107740.0,0.00349646]
[1751266054336,1.8600995,107750.0,107740.0,0.01788921]
[1751266054535,1.8600995,107750.0,107740.0,0.00349646]
[1751266055535,1.65589166,107750.0,107740.0,0.15196536]
[1751266055841,1.8600995,107750.0,107740.0,0.15196536]
[1751266057040,1.65589166,107750.0,107740.0,0.15196536]
[1751266057234,1.8600995,107750.0,107740.0,0.15196536]
[1751266057429,1.2230995,107750.0,107740.0,0.15196536]
[1751266057830,1.57918379,107750.0,107740.0,0.15196536]
[1751266058042,1.57918379,107750.0,107740.0,0.19822997]
[1751266058239,1.78339163,107750.0,107740.0,0.19822997]
[1751266059244,1.14799163,107750.0,107740.0,0.19822997]
[1751266059541,1.78295163,107750.0,107740.0,0.19822997]
[1751266059943,1.57874379,107750.0,107740.0,0.19822997]
[1751266060140,0.73252869,107750.0,107740.0,0.19473351]